Workbook

Sheet Main
A1: MONTE CARLO SIMULATION - ASIAN BASKET OPTION
B4: Input initial Parameters here: | G4: Input Standard Deviation:
C5: A | D5: B | E5: C | G5: A | H5: B | I5: C | K5: # Steps | L5: 10
B6: S(0) | C6: 1000 | D6: 500 | E6: 200 | G6: =0.0223197329092687 -> 0.02231973291 | H6: =0.0314665834496647 -> 0.03146658345 | I6: =0.0281701289093585 -> 0.02817012891 | K6: # Simulations | L6: 10 | O6: 100
B7: r(f) | C7: =LN(1+0.0063)/252 -> 2.49215792e-05 | D7: =LN(1+0.0376)/252 -> 0.0001464696588 | E7: =LN(1+0.0015)/252 -> 5.947921126e-06
B8: cov | C8: -0.0003079596147 | D8: -9.769190652e-05 | E8: -4.610199667e-05
B9: q | C9: =0.0097/252 -> 3.849206349e-05 | D9: =4.12%/252 -> 0.0001634920635 | E9: =3.19%/252 -> 0.0001265873016 | G9: Last Process initiated 19 okt 2008, at 13:46:54 | M9: Optt. Value | N9: =Results!C4 -> 0.4819636071
B10: dt | C10: 1 | D10: 1 | E10: 1 | G10: Last Process terminated 19 okt 2008, at 13:46:56

Sheet SimCalc
Y1: =LN(1+4.41%) -> 0.04315527031 | AC1: 0.0006299407883 | AF1: =1/SQRT(252) -> 0.06299407883
A2: 99 | B2: BOX MULLER | X2: =X36/$E$5 -> 11010.68984 | Y2: =Y36/$E$5 -> 4967.171285 | Z2: 10312.7158 | AA2: =IF(Y4>=1,1,0) -> 1 | AC2: =B13*SQRT(252) -> 0.3543147756 | AD2: =C13*SQRT(252) -> 0.4995165265 | AE2: 0.447186933
B3: A | C3: B | D3: C | X3: =(X38/B18) -> 1.00663274 | Y3: =Y38/C18 -> 0.9973738839 | Z3: =Z38/D18 -> 0.9987734881 | AA3: =EXP(-Y1*30/360)*AA2 -> 0.9964101863 | AC3: =(AC2+0.01)/SQRT(252)-B13 -> 0.0006299407883 | AD3: =(AD2+0.01)/SQRT(252)-C13 -> 0.0006299407883 | AE3: =(AE2+0.01)/SQRT(252)-D13 -> 0.0006299407883
B4: 0.4853907409 | C4: 1.526073252 | D4: -0.5943522561 | Y4: =AVERAGE(X3:Z3) -> 1.000926704
D5: N.Steps | E5: =Main!L5 -> 24
F6: Cholesky | O6: 8
B7: Random Numbers with Normal Distribution (Correlated) | F7: =Cholesky!E21 -> 1 | G7: =Cholesky!F21 -> 0 | H7: =Cholesky!G21 -> 0
B8: =MMULT(B4:D4,F7:H9) -> 1.268537662 | C8: 0.8529615712 | D8: -0.404612663 | F8: =Cholesky!E22 -> 0.5376665443 | G8: =Cholesky!F22 -> 0.8431575696 | H8: =Cholesky!G22 -> 0
F9: =Cholesky!E23 -> 0.06287788036 | G9: =Cholesky!F23 -> 0.729800616 | H9: =Cholesky!G23 -> 0.680762391
B11: Standard Deviation | F11: Random Numbers with Normal Distribution (Correlated) | I11: Multiplication SD x Random Numbers (Correlated) | L11: STEP A | O11: STEP B | R11: EXPONENTIAL | U11: exp(t-1) | X11: Sum (S) | AA11: Sum(S2) | AE11: SIMULATIONS
B12: A | C12: B | D12: C
B13: =Main!G6 -> 0.02231973291 | C13: =Main!H6 -> 0.03146658345 | D13: =Main!I6 -> 0.02817012891 | X13: 11289.32463 | Y13: 5137.449027 | Z13: 10650.77446 | AA13: 0.000530672954 | AB13: 0.001053639262 | AC13: 0.0008443605958 | AE13: 1.000926704 | AF13: 1 | AG13: 10312.7158
X14: 22634.22321 | Y14: 10296.48132 | Z14: 21346.55253 | AA14: 0.0005359105008 | AB14: 0.00106251088 | AC14: 0.0008515111664 | AE14: 1.000926704 | AF14: 1 | AG14: 10312.7158
B15: Multiplication SD x Random Numbers (Correlated) | X15: 33683.83046 | Y15: 15321.60584 | Z15: 31760.7385 | AA15: 0.0005083756193 | AB15: 0.001008069675 | AC15: 0.0008072652137 | AE15: 1.000926704 | AF15: 1 | AG15: 10312.7158
B16: =B8*B13 -> 0.02831342181 | C16: =C8*C13 -> 0.02683978646 | D16: -0.01139799087 | X16: 44595.13924 | Y16: 20282.87948 | Z16: 42041.57125 | AA16: 0.0004957294537 | AB16: 0.0009826146966 | AC16: 0.0007867235844 | AE16: 1.000926704 | AF16: 1 | AG16: 10312.7158
X17: 55693.95145 | Y17: 25323.85547 | Z17: 52496.50615 | AA17: 0.0005129133913 | AB17: 0.001014439501 | AC17: 0.0008135949541 | AE17: 1.000926704 | AF17: 1 | AG17: 10312.7158
A18: S(0) | B18: =Main!C6 -> 10938.14 | C18: =Main!D6 -> 4980.25 | D18: =Main!E6 -> 10325.38 | X18: 66451.22224 | Y18: 30190.71634 | Z18: 62629.04363 | AA18: 0.0004818315489 | AB18: 0.0009455723333 | AC18: 0.0007641911776 | AE18: 1.000926704 | AF18: 1 | AG18: 10312.7158
A19: r(f) | B19: =Main!C7 -> 2.49215792e-05 | C19: =Main!D7 -> 0.0001464696588 | D19: =Main!E7 -> 5.947921126e-06 | X19: 76945.45275 | Y19: 34934.14499 | Z19: 72513.12535 | AA19: 0.0004585558409 | AB19: 0.0008982177609 | AC19: 0.0007271738214 | AE19: 1.000926704 | AF19: 1 | AG19: 10312.7158
A20: cov | B20: =Main!C8 -> -0.0003079596147 | C20: =Main!D8 -> -9.769190652e-05 | D20: =Main!E8 -> -4.610199667e-05 | X20: 87533.52025 | Y20: 39718.29845 | Z20: 82482.27928 | AA20: 0.0004667931066 | AB20: 0.000913707308 | AC20: 0.0007397452493 | AE20: 1.000926704 | AF20: 1 | AG20: 10312.7158
A21: q | B21: =Main!C9 -> 3.849206349e-05 | C21: =Main!D9 -> 0.0001634920635 | D21: =Main!E9 -> 0.0001265873016 | X21: 98343.95937 | Y21: 44602.93219 | Z21: 92655.872 | AA21: 0.0004866062719 | AB21: 0.0009524910487 | AC21: 0.0007703964569 | AE21: 1.000926704 | AF21: 1 | AG21: 10312.7158
A22: dt | B22: =Main!C10 -> 1 | C22: =Main!D10 -> 1 | D22: =Main!E10 -> 1 | X22: 109173.4392 | Y22: 49495.01395 | Z22: 102839.0454 | AA22: 0.0004883219246 | AB22: 0.0009553979548 | AC22: 0.0007718481355 | AE22: 1.000926704 | AF22: 1 | AG22: 10312.7158
X23: 120065.0262 | Y23: 54414.13496 | Z23: 113076.9813 | AA23: 0.0004939390527 | AB23: 0.0009659883897 | AC23: 0.0007801720525 | AE23: 1.000926704 | AF23: 1 | AG23: 10312.7158
A24: STEP A | B24: =(B19-B20-B21-(B13^2/2))*B22 -> 4.530389185e-05 | C24: =(C19-C20-C21-(C13^2/2))*C22 -> -0.0004144034352 | D24: =(D19-D20-D21-(D13^2/2))*D22 -> -0.0004713154652 | X24: 130698.2154 | Y24: 59216.22508 | Z24: 123071.1043 | AA24: 0.0004707801191 | AB24: 0.0009205714568 | AC24: 0.0007434554806 | AE24: 1.000926704 | AF24: 1 | AG24: 10312.7158
X25: 140959.0989 | Y25: 63851.28233 | Z25: 132717.738 | AA25: 0.0004383899035 | AB25: 0.0008576440931 | AC25: 0.0006926552886 | AE25: 1.000926704 | AF25: 1 | AG25: 10312.7158
A26: STEP B | B26: =B24+B16 -> 0.0283587257 | C26: =C24+C16 -> 0.02642538302 | D26: -0.01186930634 | X26: 151888.377 | Y26: 68795.77005 | Z26: 143009.7983 | AA26: 0.0004973635832 | AB26: 0.0009759768101 | AC26: 0.0007884428552 | AE26: 1.000926704 | AF26: 1 | AG26: 10312.7158
X27: 163130.321 | Y27: 73881.91971 | Z27: 153596.4262 | AA27: 0.000526227892 | AB27: 0.001032702345 | AC27: 0.000834220542 | AE27: 1.000926704 | AF27: 1 | AG27: 10312.7158
A28: exponential | B28: =EXP(B26) -> 1.028764663 | C28: =EXP(C26) -> 1.026777629 | D28: 0.988200856 | X28: 174730.4368 | Y28: 79121.88795 | Z28: 164521.4565 | AA28: 0.000560293623 | AB28: 0.001096110161 | AC28: 0.0008884047694 | AE28: 1.000926704 | AF28: 1 | AG28: 10312.7158
X29: 186518.5546 | Y29: 84442.83292 | Z29: 175619.2979 | AA29: 0.0005786020537 | AB29: 0.001130249773 | AC29: 0.0009167324672 | AE29: 1.000926704 | AF29: 1 | AG29: 10312.7158
A30: S(t) | B30: =B18*B28 -> 11252.77191 | C30: =C18*C28 -> 5113.609289 | D30: 10203.54935 | X30: 198151.0179 | Y30: 89692.16916 | Z30: 186560.9275 | AA30: 0.0005634227884 | AB30: 0.001100032908 | AC30: 0.0008911064695 | AE30: 1.000926704 | AF30: 1 | AG30: 10312.7158
X31: 209563.245 | Y31: 94841.74725 | Z31: 197291.1797 | AA31: 0.0005422903078 | AB31: 0.001058620236 | AC31: 0.0008570091147 | AE31: 1.000926704 | AF31: 1 | AG31: 10312.7158
A32: S(t)/S(0) | B32: =B30/B18 -> 1.028764663 | C32: =C30/C18 -> 1.026777629 | D32: 0.988200856 | X32: 221542.4215 | Y32: 100252.2673 | Z32: 208562.3712 | AA32: 0.0005975097021 | AB32: 0.001168624321 | AC32: 0.0009455951656 | AE32: 1.000926704 | AF32: 1 | AG32: 10312.7158
X33: 233721.5864 | Y33: 105750.1779 | Z33: 220016.0488 | AA33: 0.0006176266895 | AB33: 0.001206680349 | AC33: 0.0009764623088 | AE33: 1.000926704 | AF33: 1 | AG33: 10312.7158
A34: R | B34: =AVERAGE(B32:D32) -> 1.014581049 | X34: 246038.5966 | Y34: 111308.5609 | Z34: 231595.787 | AA34: 0.0006316865475 | AB34: 0.001233371251 | AC34: 0.0009980747359 | AE34: 1.000926704 | AF34: 1 | AG34: 10312.7158
X35: 258345.0588 | Y35: 116860.9984 | Z35: 243158.8076 | AA35: 0.0006306050961 | AB35: 0.001230734151 | AC35: 0.0009951949964 | AE35: 1.000926704 | AF35: 1 | AG35: 10312.7158
A36: Payoff | B36: =IF(B34>=1,1,0) -> 1 | X36: 270901.7382 | Y36: 122526.1974 | Z36: 254938.5294 | AA36: 0.0006565089434 | AB36: 0.001281230395 | AC36: 0.001032846178 | AE36: 1.000926704 | AF36: 1 | AG36: 10312.7158
AE37: 1.000926704 | AF37: 1 | AG37: 10312.7158
A38: N.Simulations | B38: 100 | X38: =X36/$E$5 -> 11010.68984 | Y38: =Y36/$E$5 -> 4967.171285 | Z38: 10312.7158 | AE38: 1.000926704 | AF38: 1 | AG38: 10312.7158
A39: S(t-1) | B39: 130 | C39: 22500 | D39: 4100 | X39: =(X38/B18) -> 1.00663274 | Y39: =Y38/C18 -> 0.9973738839 | Z39: =Z38/D18 -> 0.9987734881 | AE39: 1.000926704 | AF39: 1 | AG39: 10312.7158
A40: exp(t-1) | B40: =B39/B18 -> 0.01188501884 | C40: =C39/C18 -> 4.51784549 | D40: 0.3970798169 | Y40: =AVERAGE(X39:Z39) -> 1.000926704 | AE40: 1.000926704 | AF40: 1 | AG40: 10312.7158
Y41: =IF(Y40>=1,1,0) -> 1 | AE41: 1.000926704 | AF41: 1 | AG41: 10312.7158
A42: Product (exp) | B42: =B40*B28 -> 0.0122268874 | C42: =C40*C28 -> 4.638822682 | D42: 0.392394615 | Y42: =EXP(-Y1*30/360)*Y41 -> 0.9964101863 | AE42: 1.000926704 | AF42: 1 | AG42: 10312.7158
A43: Sum( S) | B43: =130+B18*B42 -> 263.7394061 | C43: =130+C18*C42 -> 23232.49666 | D43: 4181.62351 | AE43: 1.000926704 | AF43: 1 | AG43: 10312.7158
A44: Sum(S2) | B44: =B39^2+(B42*B18)^2 -> 34786.22875 | AE44: 1.000926704 | AF44: 1 | AG44: 10312.7158
AE45: 1.000926704 | AF45: 1 | AG45: 10312.7158
AE46: 1.000926704 | AF46: 1 | AG46: 10312.7158
AE47: 1.000926704 | AF47: 1 | AG47: 10312.7158
AE48: 1.000926704 | AF48: 1 | AG48: 10312.7158
AE49: 1.000926704 | AF49: 1 | AG49: 10312.7158
AE50: 1.000926704 | AF50: 1 | AG50: 10312.7158
AE51: 1.000926704 | AF51: 1 | AG51: 10312.7158
AE52: 1.000926704 | AF52: 1 | AG52: 10312.7158
AE53: 1.000926704 | AF53: 1 | AG53: 10312.7158
AE54: 1.000926704 | AF54: 1 | AG54: 10312.7158
A55: 1 | B55: 2 | C55: 3 | D55: 4 | E55: 5 | L55: 12 | M55: 13 | N55: 14 | O55: 15 | P55: 16 | Q55: 17 | R55: 18 | S55: 19 | T55: 20 | U55: 21 | V55: 22 | W55: 23 | X55: 24 | Y55: 25 | Z55: 26 | AA55: 27 | AB55: 28 | AC55: 29 | AD55: 30 | AE55: 1.000926704 | AF55: 1 | AG55: 10312.7158
AE56: 1.000926704 | AF56: 1 | AG56: 10312.7158
AE57: 1.000926704 | AF57: 1 | AG57: 10312.7158
AE58: 1.000926704 | AF58: 1 | AG58: 10312.7158
AE59: 1.000926704 | AF59: 1 | AG59: 10312.7158
AE60: 1.000926704 | AF60: 1 | AG60: 10312.7158
AE61: 1.000926704 | AF61: 1 | AG61: 10312.7158
AE62: 1.000926704 | AF62: 1 | AG62: 10312.7158
AE63: 1.000926704 | AF63: 1 | AG63: 10312.7158
AE64: 1.000926704 | AF64: 1 | AG64: 10312.7158
AE65: 1.000926704 | AF65: 1 | AG65: 10312.7158
AE66: 1.000926704 | AF66: 1 | AG66: 10312.7158
AE67: 1.000926704 | AF67: 1 | AG67: 10312.7158
AE68: 1.000926704 | AF68: 1 | AG68: 10312.7158
AE69: 1.000926704 | AF69: 1 | AG69: 10312.7158
AE70: 1.000926704 | AF70: 1 | AG70: 10312.7158
AE71: 1.000926704 | AF71: 1 | AG71: 10312.7158
AE72: 1.000926704 | AF72: 1 | AG72: 10312.7158
AE73: 1.000926704 | AF73: 1 | AG73: 10312.7158
AE74: 1.000926704 | AF74: 1 | AG74: 10312.7158
AE75: 1.000926704 | AF75: 1 | AG75: 10312.7158
AE76: 1.000926704 | AF76: 1 | AG76: 10312.7158
AE77: 1.000926704 | AF77: 1 | AG77: 10312.7158
AE78: 1.000926704 | AF78: 1 | AG78: 10312.7158
AE79: 1.000926704 | AF79: 1 | AG79: 10312.7158
AE80: 1.000926704 | AF80: 1 | AG80: 10312.7158
AE81: 1.000926704 | AF81: 1 | AG81: 10312.7158
AE82: 1.000926704 | AF82: 1 | AG82: 10312.7158
AE83: 1.000926704 | AF83: 1 | AG83: 10312.7158
AE84: 1.000926704 | AF84: 1 | AG84: 10312.7158
AE85: 1.000926704 | AF85: 1 | AG85: 10312.7158
AE86: 1.000926704 | AF86: 1 | AG86: 10312.7158
AE87: 1.000926704 | AF87: 1 | AG87: 10312.7158
AE88: 1.000926704 | AF88: 1 | AG88: 10312.7158
AE89: 1.000926704 | AF89: 1 | AG89: 10312.7158
AE90: 1.000926704 | AF90: 1 | AG90: 10312.7158
AE91: 1.000926704 | AF91: 1 | AG91: 10312.7158
AE92: 1.000926704 | AF92: 1 | AG92: 10312.7158
AE93: 1.000926704 | AF93: 1 | AG93: 10312.7158
AE94: 1.000926704 | AF94: 1 | AG94: 10312.7158
AE95: 1.000926704 | AF95: 1 | AG95: 10312.7158
AE96: 1.000926704 | AF96: 1 | AG96: 10312.7158
AE97: 1.000926704 | AF97: 1 | AG97: 10312.7158
AE98: 1.000926704 | AF98: 1 | AG98: 10312.7158
AE99: 1.000926704 | AF99: 1 | AG99: 10312.7158
AE100: 1.000926704 | AF100: 1 | AG100: 10312.7158
AE101: 1.000926704 | AF101: 1 | AG101: 10312.7158
AE102: 1.000926704 | AF102: 1 | AG102: 10312.7158
AE103: 1.000926704 | AF103: 1 | AG103: 10312.7158
AE104: 1.000926704 | AF104: 1 | AG104: 10312.7158
AE105: 1.000926704 | AF105: 1 | AG105: 10312.7158
AE106: 1.000926704 | AF106: 1 | AG106: 10312.7158
AE107: 1.000926704 | AF107: 1 | AG107: 10312.7158
AE108: 1.000926704 | AF108: 1 | AG108: 10312.7158
AE109: 1.000926704 | AF109: 1 | AG109: 10312.7158
AE110: 1.000926704 | AF110: 1 | AG110: 10312.7158
AE111: 1.000926704 | AF111: 1 | AG111: 10312.7158
AE112: 1.000926704 | AF112: 1 | AG112: 10312.7158
AE113: 1.000926704 | AF113: 1 | AG113: 10312.7158
AE114: 1.000926704 | AF114: 1 | AG114: 10312.7158
AE115: 1.000926704 | AF115: 1 | AG115: 10312.7158
AE116: 1.000926704 | AF116: 1 | AG116: 10312.7158
AE117: 1.000926704 | AF117: 1 | AG117: 10312.7158
AE118: 1.000926704 | AF118: 1 | AG118: 10312.7158
AE119: 1.000926704 | AF119: 1 | AG119: 10312.7158
AE120: 1.000926704 | AF120: 1 | AG120: 10312.7158
AE121: 1.000926704 | AF121: 1 | AG121: 10312.7158
AE122: 1.000926704 | AF122: 1 | AG122: 10312.7158
AE123: 1.000926704 | AF123: 1 | AG123: 10312.7158
AE124: 1.000926704 | AF124: 1 | AG124: 10312.7158
AE125: 1.000926704 | AF125: 1 | AG125: 10312.7158
AE126: 1.000926704 | AF126: 1 | AG126: 10312.7158
AE127: 1.000926704 | AF127: 1 | AG127: 10312.7158
AE128: 1.000926704 | AF128: 1 | AG128: 10312.7158
AE129: 1.000926704 | AF129: 1 | AG129: 10312.7158
AE130: 1.000926704 | AF130: 1 | AG130: 10312.7158
AE131: 1.000926704 | AF131: 1 | AG131: 10312.7158
AE132: 1.000926704 | AF132: 1 | AG132: 10312.7158
AE133: 1.000926704 | AF133: 1 | AG133: 10312.7158
AE134: 1.000926704 | AF134: 1 | AG134: 10312.7158
AE135: 1.000926704 | AF135: 1 | AG135: 10312.7158
AE136: 1.000926704 | AF136: 1 | AG136: 10312.7158
AE137: 1.000926704 | AF137: 1 | AG137: 10312.7158
AE138: 1.000926704 | AF138: 1 | AG138: 10312.7158
AE139: 1.000926704 | AF139: 1 | AG139: 10312.7158
AE140: 1.000926704 | AF140: 1 | AG140: 10312.7158
AE141: 1.000926704 | AF141: 1 | AG141: 10312.7158
AE142: 1.000926704 | AF142: 1 | AG142: 10312.7158
AE143: 1.000926704 | AF143: 1 | AG143: 10312.7158
AE144: 1.000926704 | AF144: 1 | AG144: 10312.7158
AE145: 1.000926704 | AF145: 1 | AG145: 10312.7158
AE146: 1.000926704 | AF146: 1 | AG146: 10312.7158
AE147: 1.000926704 | AF147: 1 | AG147: 10312.7158
AE148: 1.000926704 | AF148: 1 | AG148: 10312.7158
AE149: 1.000926704 | AF149: 1 | AG149: 10312.7158
AE150: 1.000926704 | AF150: 1 | AG150: 10312.7158
AE151: 1.000926704 | AF151: 1 | AG151: 10312.7158
AE152: 1.000926704 | AF152: 1 | AG152: 10312.7158
AE153: 1.000926704 | AF153: 1 | AG153: 10312.7158
AE154: 1.000926704 | AF154: 1 | AG154: 10312.7158
AE155: 1.000926704 | AF155: 1 | AG155: 10312.7158
AE156: 1.000926704 | AF156: 1 | AG156: 10312.7158
AE157: 1.000926704 | AF157: 1 | AG157: 10312.7158
AE158: 1.000926704 | AF158: 1 | AG158: 10312.7158
AE159: 1.000926704 | AF159: 1 | AG159: 10312.7158
AE160: 1.000926704 | AF160: 1 | AG160: 10312.7158
AE161: 1.000926704 | AF161: 1 | AG161: 10312.7158
AE162: 1.000926704 | AF162: 1 | AG162: 10312.7158
AE163: 1.000926704 | AF163: 1 | AG163: 10312.7158
AE164: 1.000926704 | AF164: 1 | AG164: 10312.7158
AE165: 1.000926704 | AF165: 1 | AG165: 10312.7158
AE166: 1.000926704 | AF166: 1 | AG166: 10312.7158
AE167: 1.000926704 | AF167: 1 | AG167: 10312.7158
AE168: 1.000926704 | AF168: 1 | AG168: 10312.7158
AE169: 1.000926704 | AF169: 1 | AG169: 10312.7158
AE170: 1.000926704 | AF170: 1 | AG170: 10312.7158
AE171: 1.000926704 | AF171: 1 | AG171: 10312.7158
AE172: 1.000926704 | AF172: 1 | AG172: 10312.7158
AE173: 1.000926704 | AF173: 1 | AG173: 10312.7158
AE174: 1.000926704 | AF174: 1 | AG174: 10312.7158
AE175: 1.000926704 | AF175: 1 | AG175: 10312.7158
AE176: 1.000926704 | AF176: 1 | AG176: 10312.7158
AE177: 1.000926704 | AF177: 1 | AG177: 10312.7158
AE178: 1.000926704 | AF178: 1 | AG178: 10312.7158
AE179: 1.000926704 | AF179: 1 | AG179: 10312.7158
AE180: 1.000926704 | AF180: 1 | AG180: 10312.7158
AE181: 1.000926704 | AF181: 1 | AG181: 10312.7158
AE182: 1.000926704 | AF182: 1 | AG182: 10312.7158
AE183: 1.000926704 | AF183: 1 | AG183: 10312.7158
AE184: 1.000926704 | AF184: 1 | AG184: 10312.7158
AE185: 1.000926704 | AF185: 1 | AG185: 10312.7158
AE186: 1.000926704 | AF186: 1 | AG186: 10312.7158
AE187: 1.000926704 | AF187: 1 | AG187: 10312.7158
AE188: 1.000926704 | AF188: 1 | AG188: 10312.7158
AE189: 1.000926704 | AF189: 1 | AG189: 10312.7158
AE190: 1.000926704 | AF190: 1 | AG190: 10312.7158
AE191: 1.000926704 | AF191: 1 | AG191: 10312.7158
AE192: 1.000926704 | AF192: 1 | AG192: 10312.7158
AE193: 1.000926704 | AF193: 1 | AG193: 10312.7158
AE194: 1.000926704 | AF194: 1 | AG194: 10312.7158
AE195: 1.000926704 | AF195: 1 | AG195: 10312.7158
AE196: 1.000926704 | AF196: 1 | AG196: 10312.7158
AE197: 1.000926704 | AF197: 1 | AG197: 10312.7158
AE198: 1.000926704 | AF198: 1 | AG198: 10312.7158
AE199: 1.000926704 | AF199: 1 | AG199: 10312.7158
AE200: 1.000926704 | AF200: 1 | AG200: 10312.7158
AE201: 1.000926704 | AF201: 1 | AG201: 10312.7158
... 2049 more rows

Sheet Cholesky
B2: CHOLESKY DECOMPOSITION
E5: Correlation | P5: Non Standardized : VAR-COVAR
E6: 3mo | F6: 6mo | G6: 9mo | H6: 12mo | I6: 18mo
E7: r1 | F7: r2 | G7: r3 | H7: r4 | I7: r5 | Q7: GILT | R7: FTSE | S7: S&P | T7: USD/GBP | U7: SIGMAS | V7: RETURNS
C8: 3mo | D8: r1 | E8: 1 | F8: 0.5376665443 | G8: 0.06287788036 | H8: 0.08 | I8: 0.077
C9: 6mo | D9: r2 | E9: 0.5376665443 | F9: 1 | G9: 0.6491442463 | H9: 0.4 | I9: 0.3 | P9: GILT | Q9: 5.5884 | R9: 1.6749 | S9: 0.2233 | T9: -1.0528 | U9: =Q9^0.5 -> 2.363979695 | V9: 0.05
C10: 9mo | D10: r3 | E10: 0.06287788036 | F10: 0.6491442463 | G10: 1 | H10: 0.3 | I10: 0.2 | P10: FTSE | Q10: 1.6749 | R10: 22.366 | S10: 10.0886 | T10: -5.5765 | U10: =R10^0.5 -> 4.729270557 | V10: 0.125
C11: 12mo | D11: r4 | E11: 0.08 | F11: 0.4 | G11: 0.3 | H11: 1 | I11: 0.2 | P11: S&P | Q11: 0.2233 | R11: 10.0886 | S11: 10.773 | T11: -0.5839 | U11: =S11^0.5 -> 3.282224855 | V11: 22.5
C12: 18mo | D12: r5 | E12: 0.077 | F12: 0.3 | G12: 0.2 | H12: 0.2 | I12: 1 | P12: USD/GBP | Q12: -1.0528 | R12: -5.5765 | S12: -0.5839 | T12: 16.2161 | U12: =T12^0.5 -> 4.026921901 | V12: -4
B15: New | C15: Return Type | E15: L | L15: 1 | M15: 0.5376665443 | N15: 0.06287788036
C16: Activation | E16: 1 | L16: 0.5376665443 | M16: 1 | N16: 0.6491442463
L17: 0.06287788036 | M17: 0.6491442463 | N17: 1
D19: Cholesky Decomposition of Correlation Matrix | Q19: =Cholesky(Q9:T12) -> Inactive | R19: Inactive | S19: Inactive | T19: Inactive
Q20: Inactive | R20: Inactive | S20: Inactive | T20: Inactive
E21: =Cholesky(E8:G10,E16,E15) -> 1 | F21: 0 | G21: 0 | Q21: Inactive | R21: Inactive | S21: Inactive | T21: Inactive
E22: 0.5376665443 | F22: 0.8431575696 | G22: 0 | Q22: Inactive | R22: Inactive | S22: Inactive | T22: Inactive
E23: 0.06287788036 | F23: 0.729800616 | G23: 0.680762391
Q24: 0.05 | R24: 0.125 | S24: 22.5 | T24: -4
B28: VALIDATION | D28: Transpose of Cholesky Matrix
E30: =TRANSPOSE(E21:G23) -> 1 | F30: 0.5376665443 | G30: 0.06287788036
E31: 0 | F31: 0.8431575696 | G31: 0.729800616
E32: 0 | F32: 0 | G32: 0.680762391
D37: P= Cholesky* CholesyTranspose
E40: =MMULT(E21:G23,E30:G32) -> 1 | F40: 0.5376665443 | G40: 0.06287788036
E41: 0.5376665443 | F41: 1 | G41: 0.6491442463
E42: 0.06287788036 | F42: 0.6491442463 | G42: 1
D46: Difference with Original Matrix
E49: =E40-E8 -> 0 | F49: 0 | G49: 0
E50: 0 | F50: 0 | G50: 0
E51: 0 | F51: 0 | G51: 0
E52: =E43-E11 -> 

Sheet Results
B4: Option value | C4: =C5*EXP(-SimCalc!Y1*30/360) -> 0.4819636071 | F4: 0.4833585814
B5: Probability of being in the money | C5: =AVERAGE(SimCalc!AF13:AF10012) -> 0.4837 | F5: 0.4851
B6: Variance | C6: =EXP(-2*SimCalc!Y1*30/360)*VAR(SimCalc!AF13:AF10012) -> 0.2479693259 | F6: 0.2480126972
B7: standard error of simulation | C7: =SQRT(C6/Main!L6) -> 0.004979651854 | F7: 0.004980087321
B9: Confidence interval | C9: =C4-NORMSINV(C10)*C7 -> 0.4703792046 | D9: =C4+NORMSINV(C10)*C7 -> 0.4935480096 | F9: 0.4717731658 | G9: 0.4949439969
B10: Confidence level | C10: 0.99 | F10: 0.99
B11: Width of confidence interval | C11: =D9-C9 -> 0.02316880501 | F11: 0.0231708311
B12: Width of confidence interval (% of value) | C12: =C11/C9 -> 0.0492555895 | F12: 0.04911434727
C17: - | D17: +
C18: 0.4833585814
B19: S1 | C19: 0.4861485299 | D19: 0.486447453
B20: S2 | C20: 0.4822625302 | D20: 0.4830596583
B21: S3 | C21: 0.4789743766 | D21: 0.4792732996
B22: sigma1 | C22: 0.4718998642 | D22: 0.4843549916
B23: sigma2 | C23: 0.4851521197 | D23: 0.4862481709
B24: sigma3 | C24: 0.4800704278 | D24: 0.4839564275
B25: Prob P | C25: 0.1456
B26: Prob Q | C26: 0.4851
B28: Delta1 | C28: =(D19-C19)/2 -> 0.0001494615279
B29: Delta2 | C29: =(D20-C20)/2 -> 0.0003985640745
B30: Delta3 | C30: 0.0001494615279
B31: Gamma1 | C31: =(C19+D19-2*$C$18)/1 -> 0.005878820099
B32: Gamma2 | C32: =(C20+D20-2*$C$18)/1 -> -0.001394974261
B33: Gamma3 | C33: =(C21+D21-2*$C$18)/1 -> -0.008469486584
B34: Vega1 | C34: =-(C22-D22)/0.01 -> 1.245512733
B35: Vega2 | C35: =-(C23-D23)/0.01 -> 0.1096051205
B36: Vega3 | C36: =-(C24-D24)/0.01 -> 0.3885999727
